[Event "44th Chess Olympiad Open 2022"]
[Site "Chennai"]
[Date "2022.08.01"]
[Round "4.50"]
[White "Delgado Rosas, Alex Antonio"]
[Black "Abugenda, Nagi"]
[Result "0-1"]
[WhiteElo "2149"]
[BlackElo "1991"]
[Annotator "NA RC"]
[PlyCount "44"]
[EventDate "2022.??.??"]
[TimeControl "60"]

1. d4 {[%emt 0:00:03]} Nf6 {[%emt 0:00:38]} 2. Bf4 {[%emt 0:00:06]} d6 {
[%emt 0:00:49]} 3. Nc3 {[%emt 0:00:13]} g6 {[%emt 0:00:31]} 4. e4 {[%emt 0:00:
00]} Bg7 {[%emt 0:01:09]} 5. Qd2 {[%emt 0:00:07]} Nbd7 {[%emt 0:01:55]} 6.
O-O-O {[%emt 0:05:18]} O-O {[%emt 0:03:58]} 7. f3 {[%emt 0:06:26]} c5 {[%emt 0:
00:00]} 8. dxc5 {[%emt 0:00:12]} Nxc5 {[%emt 0:00:26]} 9. Bh6 {[%emt 0:08:11]}
Qa5 {[%emt 0:02:47]} 10. h4 {[%emt 0:02:21]} Be6 {[%emt 0:15:56]} 11. Bxg7 {
[%emt 0:09:24]} Kxg7 {[%emt 0:00:34]} 12. h5 {[%emt 0:00:32]} Rac8 {[%emt 0:00:
00]} 13. hxg6 {[%emt 0:01:08]} fxg6 {[%emt 0:00:49]} 14. Qh6+ {[%emt 0:13:45]}
Kg8 {[%emt 0:01:44]} 15. Nh3 {[%emt 0:09:38]} Bxa2 {[%emt 0:08:23]} 16. Qe3 {
[%emt 0:14:08]} Rc7 {[%emt 0:10:03]} 17. Rd4 {[%emt 0:23:00]} Bf7 {[%emt 0:00:
00]} 18. Kd2 {[%emt 0:00:05]} Qa1 {[%emt 0:05:26]} 19. Rb4 {[%emt 0:00:05]} Rd8
{[%emt 0:06:16]} 20. Nf2 {[%emt 0:02:22]} Qa5 {[%emt 0:01:09]} 21. Rb5 {
[%emt 0:00:26]} Qa6 {[%emt 0:03:22]} 22. Rxc5 {[%emt 0:00:17]} dxc5+ {[%emt 0:
00:00]} 0-1

[Event "44th Chess Olympiad Open 2022"]
[Site "Chennai"]
[Date "2022.08.01"]
[Round "4.50"]
[White "Alhassadi, Yousef A."]
[Black "Ramos Espinoza, Efren Andres"]
[Result "1/2-1/2"]
[WhiteElo "2068"]
[BlackElo "2158"]
[Annotator "NA RC"]
[PlyCount "121"]
[EventDate "2022.??.??"]
[TimeControl "60"]

1. e4 {[%emt 0:00:02]} c5 {[%emt 0:00:17]} 2. c3 {[%emt 0:00:09]} Nf6 {[%emt 0:
00:00]} 3. e5 {[%emt 0:00:09]} Nd5 {[%emt 0:00:06]} 4. d4 {[%emt 0:00:04]} cxd4
{[%emt 0:00:18]} 5. cxd4 {[%emt 0:00:09]} Nc6 {[%emt 0:00:50]} 6. Nf3 {[%emt 0:
00:00]} d6 {[%emt 0:00:14]} 7. Bc4 {[%emt 0:00:05]} e6 {[%emt 0:03:08]} 8. Qe2
{[%emt 0:01:07]} dxe5 {[%emt 0:01:35]} 9. dxe5 {[%emt 0:00:49]} Bb4+ {[%emt 0:
00:00]} 10. Bd2 {[%emt 0:08:06]} Nf4 {[%emt 0:06:14]} 11. Qe4 {[%emt 0:05:48]}
Bxd2+ {[%emt 0:00:48]} 12. Nbxd2 {[%emt 0:00:23]} Ng6 {[%emt 0:00:35]} 13. O-O
{[%emt 0:06:22]} O-O {[%emt 0:00:28]} 14. Rfd1 {[%emt 0:05:13]} Qc7 {[%emt 0:
00:00]} 15. Re1 {[%emt 0:04:14]} Rd8 {[%emt 0:01:43]} 16. Rad1 {[%emt 0:05:17]}
Bd7 {[%emt 0:08:16]} 17. h4 {[%emt 0:08:32]} Na5 {[%emt 0:10:25]} 18. Bd3 {
[%emt 0:07:10]} Bc6 {[%emt 0:00:28]} 19. Qe3 {[%emt 0:00:20]} Qb6 {[%emt 0:00:
00]} 20. Qxb6 {[%emt 0:23:00]} axb6 {[%emt 0:00:09]} 21. Bxg6 {[%emt 0:00:20]}
hxg6 {[%emt 0:00:18]} 22. Ng5 {[%emt 0:07:56]} Bd5 {[%emt 0:01:17]} 23. a3 {
[%emt 0:07:23]} Nc6 {[%emt 0:02:21]} 24. Ndf3 {[%emt 0:03:02]} b5 {[%emt 0:00:
00]} 25. Nd4 {[%emt 0:01:13]} Ra4 {[%emt 0:05:00]} 26. Nxb5 {[%emt 0:00:35]}
Rxh4 {[%emt 0:00:16]} 27. Nc3 {[%emt 0:02:58]} Bxg2 {[%emt 0:12:24]} 28. Rxd8+
{[%emt 0:00:35]} Nxd8 {[%emt 0:00:12]} 29. Rd1 {[%emt 0:02:14]} Nc6 {[%emt 0:
00:00]} 30. f3 {[%emt 0:00:26]} Rh5 {[%emt 0:01:05]} 31. f4 {[%emt 0:00:44]} f6
{[%emt 0:03:33]} 32. exf6 {[%emt 0:01:08]} gxf6 {[%emt 0:00:35]} 33. Nxe6 {
[%emt 0:00:08]} Bf3 {[%emt 0:04:39]} 34. Rd3 {[%emt 0:00:04]} Rh1+ {[%emt 0:00:
00]} 35. Kf2 {[%emt 0:00:18]} Bg4 {[%emt 0:00:48]} 36. Nc5 {[%emt 0:00:50]} Bf5
{[%emt 0:00:23]} 37. Rd2 {[%emt 0:00:37]} Rh2+ {[%emt 0:06:21]} 38. Ke3 {
[%emt 0:00:15]} Rh3+ {[%emt 0:00:09]} 39. Kf2 {[%emt 0:00:04]} Na5 {[%emt 0:00:
00]} 40. N5e4 {[%emt 0:00:58]} Nc4 {[%emt 0:02:16]} 41. Rd4 {[%emt 0:30:53]}
Nxb2 {[%emt 0:30:47]} 42. Nxf6+ {[%emt 0:01:12]} Kf7 {[%emt 0:00:23]} 43. Nfe4
{[%emt 0:00:16]} Bxe4 {[%emt 0:04:40]} 44. Nxe4 {[%emt 0:00:00]} Rxa3 {[%emt 0:
00:00]} 45. Nd6+ {[%emt 0:00:00]} Ke6 {[%emt 0:00:00]} 46. Nxb7 {[%emt 0:00:00]
} Ra7 {[%emt 0:00:00]} 47. Nd6 {[%emt 0:00:00]} Ra3 {[%emt 0:00:00]} 48. Ne4 {
[%emt 0:00:00]} Ke7 {[%emt 0:00:00]} 49. Ke2 {[%emt 0:00:00]} Na4 {[%emt 0:00:
00]} 50. Rd3 {[%emt 0:00:00]} Ra2+ {[%emt 0:00:00]} 51. Kf3 {[%emt 0:00:00]}
Rc2 {[%emt 0:00:00]} 52. Rd6 {[%emt 0:00:00]} Kf7 {[%emt 0:00:00]} 53. Ra6 {
[%emt 0:00:00]} Nc5 {[%emt 0:00:00]} 54. Rc6 {[%emt 0:00:00]} Ne6 {[%emt 0:00:
00]} 55. Nd6+ {[%emt 0:00:00]} Kf8 {[%emt 0:00:00]} 56. Rxc2 {[%emt 0:00:00]}
Nd4+ {[%emt 0:00:00]} 57. Kg4 {[%emt 0:00:00]} Nxc2 {[%emt 0:00:00]} 58. f5 {
[%emt 0:00:00]} Ne3+ {[%emt 0:00:00]} 59. Kg5 {[%emt 0:00:00]} gxf5 {[%emt 0:
00:00]} 60. Nxf5 {[%emt 0:00:00]} Nxf5 {[%emt 0:00:00]} 61. Kxf5 {[%emt 0:00:
00]} 1/2-1/2

[Event "44th Chess Olympiad Open 2022"]
[Site "Chennai"]
[Date "2022.08.01"]
[Round "4.50"]
[White "Naser Eldean, Ahmed"]
[Black "Leon Archibaldo, Orlando Andres"]
[Result "0-1"]
[WhiteElo "1941"]
[BlackElo "2193"]
[Annotator "NA RC"]
[PlyCount "72"]
[EventDate "2022.??.??"]
[TimeControl "60"]

1. Nf3 {[%emt 0:00:06]} c5 {[%emt 0:00:31]} 2. g3 {[%emt 0:00:13]} g6 {[%emt 0:
00:00]} 3. Bg2 {[%emt 0:00:09]} Bg7 {[%emt 0:00:09]} 4. O-O {[%emt 0:00:24]}
Nc6 {[%emt 0:00:55]} 5. e4 {[%emt 0:00:17]} d6 {[%emt 0:00:54]} 6. d3 {[%emt 0:
00:00]} Nf6 {[%emt 0:02:50]} 7. Nc3 {[%emt 0:01:44]} O-O {[%emt 0:06:08]} 8. h3
{[%emt 0:01:04]} Rb8 {[%emt 0:06:03]} 9. a4 {[%emt 0:00:11]} a6 {[%emt 0:00:08]
} 10. Be3 {[%emt 0:00:22]} b5 {[%emt 0:00:22]} 11. axb5 {[%emt 0:00:13]} axb5 {
[%emt 0:00:03]} 12. Ne2 {[%emt 0:00:16]} Nd7 {[%emt 0:05:45]} 13. c3 {[%emt 0:
00:00]} Nde5 {[%emt 0:00:32]} 14. Nxe5 {[%emt 0:04:15]} Nxe5 {[%emt 0:00:03]}
15. f4 {[%emt 0:00:12]} Nd7 {[%emt 0:01:48]} 16. g4 {[%emt 0:00:42]} b4 {
[%emt 0:00:20]} 17. f5 {[%emt 0:05:07]} bxc3 {[%emt 0:01:05]} 18. bxc3 {
[%emt 0:00:10]} Rb2 {[%emt 0:05:38]} 19. Bc1 {[%emt 0:03:14]} Rb8 {[%emt 0:00:
00]} 20. Ra3 {[%emt 0:12:05]} Bb7 {[%emt 0:03:12]} 21. Nf4 {[%emt 0:02:59]} Ra8
{[%emt 0:00:16]} 22. fxg6 {[%emt 0:08:48]} hxg6 {[%emt 0:00:02]} 23. Rxa8 {
[%emt 0:04:01]} Qxa8 {[%emt 0:01:52]} 24. Qb3 {[%emt 0:03:09]} Ne5 {[%emt 0:00:
00]} 25. d4 {[%emt 0:03:24]} c4 {[%emt 0:04:59]} 26. Qc2 {[%emt 0:01:12]} Nd3 {
[%emt 0:00:50]} 27. Nxd3 {[%emt 0:04:26]} cxd3 {[%emt 0:00:03]} 28. Qxd3 {
[%emt 0:05:44]} Ba6 {[%emt 0:00:07]} 29. c4 {[%emt 0:00:22]} Qc8 {[%emt 0:00:
00]} 30. Qd1 {[%emt 0:00:46]} Qxc4 {[%emt 0:01:03]} 31. Be3 {[%emt 0:00:36]}
Rb8 {[%emt 0:04:57]} 32. d5 {[%emt 0:01:41]} Qc3 {[%emt 0:08:48]} 33. Rf3 {
[%emt 0:06:37]} Rb2 {[%emt 0:10:36]} 34. Bc1 {[%emt 0:06:27]} Qc5+ {[%emt 0:00:
00]} 35. Be3 {[%emt 0:02:19]} Qb4 {[%emt 0:00:54]} 36. Kh2 {[%emt 0:01:53]} Be2
{[%emt 0:00:14]} 0-1

[Event "44th Chess Olympiad Open 2022"]
[Site "Chennai"]
[Date "2022.08.01"]
[Round "4.51"]
[White "Harper, Ryan"]
[Black "Ortega Amarelle, Mariano"]
[Result "0-1"]
[WhiteElo "2208"]
[BlackElo "2463"]
[Annotator "TA"]
[PlyCount "80"]
[EventDate "2022.??.??"]
[TimeControl "60"]

{[%evp 25,80,59,48,22,37,20,34,0,0,0,0,0,0,0,0,0,0,0,0,0,0,0,0,-6,0,0,18,14,15,
0,0,0,0,-37,-16,-17,-23,-22,-14,-210,-214,-223,-154,-222,-195,-686,-35,-441,
-260,-3107,-2860,-29990,-29991,-29991,-1751,-29992,-29993]} 1. e4 {[%emt 0:00:
00]} c5 {[%emt 0:00:09]} 2. Nf3 {[%emt 0:00:05]} d6 {[%emt 0:00:09]} 3. d4 {
[%emt 0:00:05]} cxd4 {[%emt 0:00:06]} 4. Nxd4 {[%emt 0:00:04]} Nf6 {[%emt 0:00:
00]} 5. Nc3 {[%emt 0:00:04]} Nc6 {[%emt 0:00:06]} 6. Bg5 {[%emt 0:00:05]} e6 {
[%emt 0:00:09]} 7. Qd2 {[%emt 0:00:22]} a6 {[%emt 0:00:09]} 8. O-O-O {[%emt 0:
00:00]} Bd7 {[%emt 0:00:08]} 9. f4 {[%emt 0:02:44]} h6 {[%emt 0:00:56]} 10. Bh4
{[%emt 0:10:20]} g5 {[%emt 0:07:23]} 11. fxg5 {[%emt 0:01:07]} Ng4 {[%emt 0:00:
00]} 12. Nf3 {[%emt 0:20:54]} hxg5 {[%emt 0:02:47]} 13. Bg3 {[%emt 0:00:08]}
Be7 {[%emt 0:02:26]} 14. h3 {[%emt 0:05:46][%cal Yf1a6] aiming for Bxa6! B67:
Sicilian: Richter-Rauzer: 7...a6 8 0-0-0 Bd7, lines without 9 f4 Be7.} (14.
Bxd6 Bxd6 15. Qxd6 Nf2 $17) 14... Nge5 {[%emt 0:01:52]} 15. Nxe5 {[%emt 0:00:
00]} Nxe5 {[%emt 0:00:11] [#]} 16. Bd3 $146 {[%emt 0:13:40] White is slightly
better.} ({Predecessor:} 16. Qd4 Qa5 17. Bc4 Rc8 18. Bb3 Qc5 19. Na4 Qxd4 20.
Rxd4 Bc6 21. Nb6 Rd8 22. Rhd1 {½-½ (65) Fischer,D (2114)-Fuchs,F (2347)
Tegernsee 2017}) 16... b5 {[%emt 0:11:38]} 17. Ne2 {[%emt 0:02:34][%cal Yc3e2,
Ye2g3,Yg3h1,Yh1f2,Yf2e4]} Qb6 {[%emt 0:10:10] Inhibits Nd4.} 18. Rhf1 {[%emt 0:
00:16]} Bc6 {[%emt 0:13:56]} 19. Bf2 {[%emt 0:04:09]} Qb7 {[%emt 0:00:00]} 20.
Bd4 {[%emt 0:00:37]} f6 {[%emt 0:19:35]} 21. Ng3 {[%emt 0:01:04]} O-O-O {
[%emt 0:00:41]} 22. Qe2 {[%emt 0:04:00]} Rh4 {[%emt 0:05:06]} 23. Kb1 {[%emt 0:
08:45]} Kb8 {[%emt 0:03:07]} 24. Bc3 {[%emt 0:02:18]} Rdh8 {[%emt 0:00:00]} 25.
Rde1 {[%emt 0:01:15]} Qc7 {[%emt 0:01:54]} 26. Nh1 {[%emt 0:04:50]} d5 {
[%emt 0:12:08] White must now prevent ...dxe4.} 27. Nf2 {[%emt 0:00:07]} Nxd3 {
[%emt 0:02:35]} 28. cxd3 {[%emt 0:00:13]} b4 {[%emt 0:00:22]} 29. Bd2 {[%emt 0:
00:57]} dxe4 {[%emt 0:03:29]} (29... Ba4 30. exd5 Bc2+ 31. Ka1 $11) (29... Rd8
{looks sharper.} 30. exd5 Bxd5 31. Ng4 Qc6) 30. Nxe4 {[%emt 0:01:10]} Qd8 {
[%emt 0:00:15]} ({Much less strong is} 30... Ba4 31. Nxf6 (31. b3 Bb5 $17)
31... Bc2+ 32. Ka1 $16) 31. Ka1 {[%emt 0:06:57]} Bd5 {[%emt 0:00:13] Hoping
for ...f5.} 32. Kb1 $2 {[%emt 0:04:17]} (32. Rc1 $11) 32... f5 $19 {[%emt 0:00:
00]} 33. Ng3 {[%emt 0:02:37][%cal Yg3f5]} R4h7 {[%emt 0:01:15]} 34. Bc1 {
[%emt 0:00:32]} (34. Rc1 $17 {was worth a try.}) 34... Bd6 {[%emt 0:00:24]} 35.
Qf2 {[%emt 0:00:21] [#]} (35. Nh1) 35... b3 $2 {[%emt 0:01:07]} ({Stronger than
} 35... Qa5 36. b3 $17) (35... Bxa2+ $1 $19 36. Kxa2 Qa5+ 37. Kb3 (37. Kb1 $2
b3 $19) 37... Qd5+ 38. Kc2 Rc8+ 39. Kb1 Qxd3+ 40. Ka1 Rc5 41. Qxc5 Bxc5 42.
Bxg5 Bd4 43. Bf4+ e5 44. Bxe5+ Bxe5 45. Rxe5 Qxg3 46. Rexf5 Qxg2) 36. axb3 $2 {
[%emt 0:00:06]} (36. Bxg5 $1 $15 bxa2+ 37. Ka1) 36... Bxb3 {[%emt 0:00:41] A
strong pair of Bishops.} (36... Qa5 $142 37. Ne2 Bxb3) 37. Bxg5 $2 {[%emt 0:00:
15]} (37. Bd2) 37... Qa5 {[%emt 0:00:13] ( -> ...Rc7)} 38. Bf6 {[%emt 0:00:12]}
Rc8 {[%emt 0:00:15][%csl Gb3][%cal Ra5a2]} 39. Bc3 {[%emt 0:00:09]} Qa2+ {
[%emt 0:00:23]} 40. Kc1 {[%emt 0:00:05] [#]} Rxc3+ $1 {[%emt 0:00:07] Weighted
Error Value: White=1.08/Black=0.30} 0-1

[Event "44th Chess Olympiad Open 2022"]
[Site "Chennai"]
[Date "2022.08.01"]
[Round "4.51"]
[White "Munro, Allan"]
[Black "Mirulla, David"]
[Result "0-1"]
[WhiteElo "2008"]
[BlackElo "1953"]
[Annotator "NA RC"]
[PlyCount "72"]
[EventDate "2022.??.??"]
[TimeControl "60"]

1. d4 {[%emt 0:00:09]} Nf6 {[%emt 0:00:08]} 2. c4 {[%emt 0:00:29]} g6 {[%emt 0:
00:00]} 3. Nc3 {[%emt 0:00:22]} Bg7 {[%emt 0:00:13]} 4. e4 {[%emt 0:00:32]} d6
{[%emt 0:00:09]} 5. Be2 {[%emt 0:00:40]} O-O {[%emt 0:00:21]} 6. Be3 {[%emt 0:
00:00]} e5 {[%emt 0:01:01]} 7. d5 {[%emt 0:00:45]} a5 {[%emt 0:01:04]} 8. g4 {
[%emt 0:00:59]} Na6 {[%emt 0:08:35]} 9. h4 {[%emt 0:02:31]} Nc5 {[%emt 0:06:00]
} 10. f3 {[%emt 0:00:44]} Ne8 {[%emt 0:06:00]} 11. g5 {[%emt 0:02:30]} f5 {
[%emt 0:02:08]} 12. Qd2 {[%emt 0:03:02]} f4 {[%emt 0:11:49]} 13. Bf2 {[%emt 0:
00:00]} h6 {[%emt 0:10:41]} 14. gxh6 {[%emt 0:01:55]} Bxh6 {[%emt 0:00:37]} 15.
O-O-O {[%emt 0:02:06]} Nd7 {[%emt 0:09:40]} 16. Nh3 {[%emt 0:02:50]} Ndf6 {
[%emt 0:05:41]} 17. Rdg1 {[%emt 0:02:06]} Kf7 {[%emt 0:00:00]} 18. Bf1 {
[%emt 0:09:20]} Ng7 {[%emt 0:06:50]} 19. Be1 {[%emt 0:07:08]} Nfh5 {[%emt 0:00:
00]} 20. Kb1 {[%emt 0:08:13]} Bd7 {[%emt 0:06:46]} 21. Ng5+ {[%emt 0:07:45]}
Bxg5 {[%emt 0:00:36]} 22. Rxg5 {[%emt 0:00:04]} Rh8 {[%emt 0:04:00]} 23. c5 {
[%emt 0:05:33]} Ng3 {[%emt 0:03:13]} 24. Bxg3 {[%emt 0:00:59]} Qxg5 {[%emt 0:
00:00]} 25. hxg5 {[%emt 0:00:21]} Rxh1 {[%emt 0:00:10]} 26. Bf2 {[%emt 0:03:16]
} Rxf1+ {[%emt 0:00:34]} 27. Kc2 {[%emt 0:00:02]} Rh8 {[%emt 0:00:42]} 28. Qe2
{[%emt 0:02:02]} Rfh1 {[%emt 0:02:05]} 29. c6 {[%emt 0:06:55]} bxc6 {[%emt 0:
00:00]} 30. dxc6 {[%emt 0:00:04]} Be6 {[%emt 0:01:03]} 31. Qa6 {[%emt 0:00:35]}
R8h2 {[%emt 0:01:01]} 32. Qa7 {[%emt 0:00:07]} Ne8 {[%emt 0:00:17]} 33. a3 {
[%emt 0:00:56]} Rf1 {[%emt 0:00:25]} 34. Nd1 {[%emt 0:00:15]} a4 {[%emt 0:00:
00]} 35. Kd2 {[%emt 0:00:05]} Bb3 {[%emt 0:00:36]} 36. Ke2 {[%emt 0:00:04]}
Rxd1 {[%emt 0:00:23]} 0-1

[Event "44th Chess Olympiad Open 2022"]
[Site "Chennai"]
[Date "2022.08.01"]
[Round "4.51"]
[White "Rodriguez Guevara, Celia M."]
[Black "Winter Atwell, Adrian"]
[Result "0-1"]
[WhiteElo "1859"]
[BlackElo "2250"]
[Annotator "NA RC"]
[PlyCount "92"]
[EventDate "2022.??.??"]
[TimeControl "60"]

1. e4 {[%emt 0:00:03]} e5 {[%emt 0:00:21]} 2. Nf3 {[%emt 0:00:11]} Nc6 {
[%emt 0:00:35]} 3. Bc4 {[%emt 0:00:18]} Bc5 {[%emt 0:00:30]} 4. c3 {[%emt 0:00:
00]} Nf6 {[%emt 0:00:13]} 5. d3 {[%emt 0:00:12]} O-O {[%emt 0:00:25]} 6. O-O {
[%emt 0:01:57]} d5 {[%emt 0:01:18]} 7. exd5 {[%emt 0:04:47]} Nxd5 {[%emt 0:00:
00]} 8. Re1 {[%emt 0:07:16]} Bg4 {[%emt 0:01:05]} 9. Nbd2 {[%emt 0:01:51]} Nb6
{[%emt 0:00:19]} 10. Ne4 {[%emt 0:06:01]} Nxc4 {[%emt 0:03:42]} 11. Nxc5 {
[%emt 0:01:24]} Nd6 {[%emt 0:00:58]} 12. Bg5 {[%emt 0:04:40]} Qc8 {[%emt 0:00:
00]} 13. Ne4 {[%emt 0:03:08]} f6 {[%emt 0:02:16]} 14. Be3 {[%emt 0:15:11]} Rd8
{[%emt 0:03:06]} 15. h3 {[%emt 0:06:01]} Bh5 {[%emt 0:08:11]} 16. Ng3 {[%emt 0:
00:00]} Bf7 {[%emt 0:01:21]} 17. Qa4 {[%emt 0:04:42]} h5 {[%emt 0:08:03]} 18.
Ne4 {[%emt 0:06:29]} Nf5 {[%emt 0:01:44]} 19. Rad1 {[%emt 0:00:33]} Rd5 {
[%emt 0:04:09]} 20. Qc2 {[%emt 0:06:48]} a5 {[%emt 0:02:39]} 21. a4 {[%emt 0:
00:00]} Qd8 {[%emt 0:07:10]} 22. Rd2 {[%emt 0:03:18]} Nce7 {[%emt 0:05:08]} 23.
d4 {[%emt 0:03:08]} exd4 {[%emt 0:02:50]} 24. Bxd4 {[%emt 0:00:51]} Nxd4 {
[%emt 0:01:09]} 25. Rxd4 {[%emt 0:01:01]} Nc6 {[%emt 0:08:46]} 26. Rdd1 {
[%emt 0:01:18]} b6 {[%emt 0:01:52]} 27. Qe2 {[%emt 0:03:47]} Qd7 {[%emt 0:00:
00]} 28. Rxd5 {[%emt 0:00:41]} Qxd5 {[%emt 0:00:20]} 29. Qd2 {[%emt 0:02:52]}
Rd8 {[%emt 0:00:51]} 30. Qxd5 {[%emt 0:01:45]} Bxd5 {[%emt 0:00:36]} 31. Ned2 {
[%emt 0:00:03]} Kf7 {[%emt 0:00:58]} 32. Kf1 {[%emt 0:00:48]} g5 {[%emt 0:00:
00]} 33. Re2 {[%emt 0:03:00]} g4 {[%emt 0:01:13]} 34. Nh2 {[%emt 0:01:22]} f5 {
[%emt 0:01:58]} 35. h4 {[%emt 0:01:15]} Kf6 {[%emt 0:00:37]} 36. Ke1 {[%emt 0:
00:00]} Bxg2 {[%emt 0:00:42]} 37. f3 {[%emt 0:00:01]} Bh1 {[%emt 0:01:12]} 38.
Kf2 {[%emt 0:00:12]} Ne5 {[%emt 0:00:41]} 39. fxg4 {[%emt 0:01:20]} hxg4 {
[%emt 0:00:27]} 40. Kg1 {[%emt 0:01:21]} Bc6 {[%emt 0:00:21]} 41. Nhf1 {
[%emt 0:30:52]} Bxa4 {[%emt 0:31:03]} 42. Rf2 {[%emt 0:00:00]} Bc6 {[%emt 0:00:
00]} 43. Ne3 {[%emt 0:00:00]} Nf3+ {[%emt 0:00:00]} 44. Nxf3 {[%emt 0:00:00]}
Bxf3 {[%emt 0:00:00]} 45. Kh2 {[%emt 0:00:00]} Rd3 {[%emt 0:00:00]} 46. Nf1 {
[%emt 0:00:00]} f4 {[%emt 0:00:00]} 0-1

[Event "44th Chess Olympiad Open 2022"]
[Site "Chennai"]
[Date "2022.08.01"]
[Round "4.51"]
[White "Teixeira, Gil"]
[Black "Johnson, Joshua"]
[Result "0-1"]
[WhiteElo "1741"]
[BlackElo "2178"]
[Annotator "NA RC"]
[PlyCount "74"]
[EventDate "2022.??.??"]
[TimeControl "60"]

1. e4 {[%emt 0:00:21]} e5 {[%emt 0:00:07]} 2. Nf3 {[%emt 0:00:11]} Nc6 {
[%emt 0:00:05]} 3. c3 {[%emt 0:00:14]} d5 {[%emt 0:06:10]} 4. Bb5 {[%emt 0:00:
00]} dxe4 {[%emt 0:05:37]} 5. Nxe5 {[%emt 0:01:12]} Qd5 {[%emt 0:00:15]} 6.
Bxc6+ {[%emt 0:00:59]} bxc6 {[%emt 0:00:19]} 7. d4 {[%emt 0:01:38]} exd3 {
[%emt 0:02:23]} 8. Nxd3 {[%emt 0:00:40]} Qxg2 {[%emt 0:02:20]} 9. Qe2+ {
[%emt 0:01:29]} Be7 {[%emt 0:02:41]} 10. Rf1 {[%emt 0:00:18]} Bg4 {[%emt 0:00:
00]} 11. f3 {[%emt 0:03:13]} Qxe2+ {[%emt 0:02:59]} 12. Kxe2 {[%emt 0:02:41]}
Bf5 {[%emt 0:00:02]} 13. Ne5 {[%emt 0:00:54]} Bd6 {[%emt 0:05:44]} 14. Nxc6 {
[%emt 0:01:06]} Bd7 {[%emt 0:01:00]} 15. Nd4 {[%emt 0:01:40]} c5 {[%emt 0:00:
00]} 16. Nb3 {[%emt 0:01:50]} Bb5+ {[%emt 0:04:38]} 17. Kf2 {[%emt 0:00:17]}
Bxf1 {[%emt 0:00:04]} 18. Kxf1 {[%emt 0:00:08]} Bxh2 {[%emt 0:05:03]} 19. f4 {
[%emt 0:00:34]} Bg3 {[%emt 0:00:10]} 20. Kg2 {[%emt 0:00:50]} Bh4 {[%emt 0:00:
00]} 21. Nxc5 {[%emt 0:00:13]} Be7 {[%emt 0:01:16]} 22. Ne4 {[%emt 0:00:47]}
Nf6 {[%emt 0:00:06]} 23. Nbd2 {[%emt 0:01:48]} Rd8 {[%emt 0:01:12]} 24. Nxf6+ {
[%emt 0:03:48]} Bxf6 {[%emt 0:00:16]} 25. Ne4 {[%emt 0:00:26]} Rd1 {[%emt 0:00:
00]} 26. Nf2 {[%emt 0:02:25]} Re1 {[%emt 0:00:44]} 27. Nd3 {[%emt 0:00:27]} Re7
{[%emt 0:00:06]} 28. Kf3 {[%emt 0:00:38]} O-O {[%emt 0:00:10]} 29. Be3 {
[%emt 0:02:29]} Rfe8 {[%emt 0:00:52]} 30. Bc5 {[%emt 0:00:16]} Rd7 {[%emt 0:00:
00]} 31. Nf2 {[%emt 0:01:13]} Rd2 {[%emt 0:02:07]} 32. Rb1 {[%emt 0:01:20]} Bh4
{[%emt 0:03:05]} 33. Bd4 {[%emt 0:00:35]} f5 {[%emt 0:04:12]} 34. b4 {[%emt 0:
00:00]} Ree2 {[%emt 0:05:11]} 35. Nh3 {[%emt 0:01:05]} Rh2 {[%emt 0:00:44]} 36.
Ng5 {[%emt 0:02:31]} Rd3+ {[%emt 0:00:09]} 37. Be3 {[%emt 0:00:07]} Rf2# {
[%emt 0:00:07]} 0-1